[Event "*** Titled Tuesday Blitz"]
[Site "Chess.com"]
[Date "2018.06.05"]
[Round "2"]
[White "chessdude"]
[Black "murmah2003"]
[Result "1/2-1/2"]
[WhiteElo "2434"]
[BlackElo "2478"]
[TimeControl "180+2"]
[EndTime "13:28:22 PDT"]
[Termination "Game drawn by repetition"]

1. Nf3 {[%clk 0:03:01.9]} 1... g6 {[%clk 0:02:58.8]} 2. e4 {[%clk 0:03:01.9]}
2... Bg7 {[%clk 0:02:53.7]} 3. d4 {[%clk 0:03:02.2]} 3... d6 {[%clk 0:02:52.6]}
4. c4 {[%clk 0:03:02.4]} 4... Nf6 {[%clk 0:02:52.6]} 5. Nc3 {[%clk 0:03:02.5]}
5... O-O {[%clk 0:02:53.9]} 6. Be2 {[%clk 0:03:03.5]} 6... c6 {[%clk 0:02:51.6]}
7. O-O {[%clk 0:03:03.5]} 7... e5 {[%clk 0:02:52.8]} 8. Qc2 {[%clk 0:02:52.4]}
8... Qe7 {[%clk 0:02:50.5]} 9. d5 {[%clk 0:02:37.4]} 9... Bg4 {[%clk 0:02:47.3]}
10. h3 {[%clk 0:02:33]} 10... Bxf3 {[%clk 0:02:40.9]} 11. Bxf3 {[%clk
0:02:34.9]} 11... cxd5 {[%clk 0:02:37.9]} 12. cxd5 {[%clk 0:02:31.4]} 12... Nbd7
{[%clk 0:02:38.7]} 13. Be3 {[%clk 0:02:26.6]} 13... a6 {[%clk 0:02:38.6]} 14.
Rac1 {[%clk 0:02:23.6]} 14... Rfc8 {[%clk 0:02:39.3]} 15. Qb1 {[%clk 0:02:22.9]}
15... Qf8 {[%clk 0:02:39.6]} 16. g4 {[%clk 0:02:19.3]} 16... Kh8 {[%clk
0:02:23.9]} 17. Ne2 {[%clk 0:02:14.5]} 17... Ng8 {[%clk 0:02:22.8]} 18. Rxc8
{[%clk 0:02:11.3]} 18... Rxc8 {[%clk 0:02:24.7]} 19. Rc1 {[%clk 0:02:12.6]}
19... Bh6 {[%clk 0:02:15.7]} 20. g5 {[%clk 0:02:12.9]} 20... Bg7 {[%clk
0:02:16.3]} 21. Bg4 {[%clk 0:02:05.4]} 21... Qd8 {[%clk 0:02:15.2]} 22. Rxc8
{[%clk 0:02:01]} 22... Qxc8 {[%clk 0:02:15.2]} 23. Qc1 {[%clk 0:02:01.3]} 23...
Qd8 {[%clk 0:02:05.2]} 24. h4 {[%clk 0:01:55]} 24... Ne7 {[%clk 0:01:57.8]} 25.
Ng3 {[%clk 0:01:50.8]} 25... Kg8 {[%clk 0:01:29.2]} 26. Kg2 {[%clk 0:01:51.3]}
26... Nf8 {[%clk 0:01:21.2]} 27. h5 {[%clk 0:01:44.6]} 27... Nd7 {[%clk
0:01:16.8]} 28. a4 {[%clk 0:01:26.9]} 28... Nc8 {[%clk 0:00:52.6]} 29. a5 {[%clk
0:01:20.4]} 29... Bf8 {[%clk 0:00:51.9]} 30. b4 {[%clk 0:01:17.5]} 30... Be7
{[%clk 0:00:51.6]} 31. hxg6 {[%clk 0:01:12.3]} 31... hxg6 {[%clk 0:00:53.5]} 32.
Nf1 {[%clk 0:01:00.8]} 32... Kg7 {[%clk 0:00:38]} 33. Nh2 {[%clk 0:00:58.7]}
33... Kg8 {[%clk 0:00:28.5]} 34. Bh3 {[%clk 0:00:58.3]} 34... Kg7 {[%clk
0:00:19.5]} 35. Bg4 {[%clk 0:00:43.5]} 35... Kg8 {[%clk 0:00:19.6]} 36. Nf3
{[%clk 0:00:42.4]} 36... Kg7 {[%clk 0:00:19.8]} 37. Ne1 {[%clk 0:00:23.1]} 37...
Kg8 {[%clk 0:00:19.2]} 38. Nd3 {[%clk 0:00:23.3]} 38... Kh7 {[%clk 0:00:18.7]}
39. Nb2 {[%clk 0:00:22.7]} 39... Kg8 {[%clk 0:00:17.1]} 40. Na4 {[%clk
0:00:23.5]} 40... Kh7 {[%clk 0:00:12.3]} 41. Nb2 {[%clk 0:00:23.5]} 41... Kg8
{[%clk 0:00:12.6]} 42. Nc4 {[%clk 0:00:25]} 42... Kh7 {[%clk 0:00:13.9]} 43. Kf1
{[%clk 0:00:23.3]} 43... Kg8 {[%clk 0:00:12.3]} 44. Nb2 {[%clk 0:00:22.8]} 44...
Kh7 {[%clk 0:00:12.7]} 45. Nd3 {[%clk 0:00:23.2]} 45... Kg8 {[%clk 0:00:13.7]}
46. Kg2 {[%clk 0:00:23.8]} 46... Kh7 {[%clk 0:00:14.9]} 47. f3 {[%clk
0:00:19.4]} 47... Kg8 {[%clk 0:00:15.4]} 48. Kg3 {[%clk 0:00:20.2]} 48... Kh7
{[%clk 0:00:15.7]} 49. Qh1+ {[%clk 0:00:19.2]} 49... Kg8 {[%clk 0:00:16.4]} 50.
Qc1 {[%clk 0:00:19.7]} 50... Kh7 {[%clk 0:00:17]} 51. Nf2 {[%clk 0:00:19.9]}
51... Kg8 {[%clk 0:00:16.1]} 52. Nh3 {[%clk 0:00:15.9]} 52... Kh7 {[%clk
0:00:13.5]} 53. Ng1 {[%clk 0:00:16.2]} 53... Kg8 {[%clk 0:00:14.3]} 54. Ne2
{[%clk 0:00:17.6]} 54... Kg7 {[%clk 0:00:15.3]} 55. Kg2 {[%clk 0:00:19]} 55...
Kg8 {[%clk 0:00:15.7]} 56. Ng3 {[%clk 0:00:20.3]} 56... Kg7 {[%clk 0:00:15.8]}
57. Kf2 {[%clk 0:00:21.6]} 57... Kg8 {[%clk 0:00:16.8]} 58. Kg1 {[%clk
0:00:18.3]} 58... Kg7 {[%clk 0:00:15.5]} 59. Nh1 {[%clk 0:00:19.6]} 59... Kg8
{[%clk 0:00:16.4]} 60. Nf2 {[%clk 0:00:21.2]} 60... Kg7 {[%clk 0:00:17]} 61. Nh3
{[%clk 0:00:20.2]} 61... Kg8 {[%clk 0:00:17.9]} 62. Kg2 {[%clk 0:00:21.3]} 62...
Kg7 {[%clk 0:00:18.3]} 63. Qc4 {[%clk 0:00:21.9]} 63... Kg8 {[%clk 0:00:15.2]}
64. Kf2 {[%clk 0:00:22.1]} 64... Kg7 {[%clk 0:00:13.8]} 65. Ke2 {[%clk
0:00:23.4]} 65... Kg8 {[%clk 0:00:14.9]} 66. Kd3 {[%clk 0:00:24.5]} 66... Kh7
{[%clk 0:00:16.2]} 67. Kc2 {[%clk 0:00:25.3]} 67... Kg8 {[%clk 0:00:17.7]} 68.
Kb3 {[%clk 0:00:26.6]} 68... Kh7 {[%clk 0:00:18.8]} 69. Qc1 {[%clk 0:00:26.7]}
69... Kg8 {[%clk 0:00:19.5]} 70. Nf2 {[%clk 0:00:27.8]} 70... Kg7 {[%clk
0:00:18.9]} 71. Nd3 {[%clk 0:00:29.2]} 71... Kg8 {[%clk 0:00:19.5]} 72. Bh3
{[%clk 0:00:25.9]} 72... Kg7 {[%clk 0:00:18]} 73. Bd2 {[%clk 0:00:24.8]} 73...
Kg8 {[%clk 0:00:18.8]} 74. Nf2 {[%clk 0:00:22.4]} 74... Na7 {[%clk 0:00:13.4]}
75. Be3 {[%clk 0:00:22.4]} 75... Nb5 {[%clk 0:00:13.8]} 76. Ng4 {[%clk
0:00:19.5]} 76... Kg7 {[%clk 0:00:10.8]} 77. Nf2 {[%clk 0:00:18.8]} 77... Kg8
{[%clk 0:00:11.2]} 78. Nd3 {[%clk 0:00:18.6]} 78... Kg7 {[%clk 0:00:11.9]} 79.
Ne1 {[%clk 0:00:17.7]} 79... Kg8 {[%clk 0:00:12.7]} 80. Nd3 {[%clk 0:00:18.3]}
80... Kg7 {[%clk 0:00:09.2]} 81. Ne1 {[%clk 0:00:18.7]} 81... Kg8 {[%clk
0:00:06.6]} 82. Nd3 {[%clk 0:00:18.9]} 1/2-1/2

[Event "*** Titled Tuesday Blitz"]
[Site "Chess.com"]
[Date "2018.06.05"]
[Round "2"]
[White "GhostOfGreenval"]
[Black "Vamostodorecto"]
[Result "1/2-1/2"]
[WhiteElo "2457"]
[BlackElo "2357"]
[TimeControl "180+2"]
[EndTime "13:31:58 PDT"]
[Termination "Game drawn by agreement"]

1. d4 {[%clk 0:03:01.9]} 1... d5 {[%clk 0:02:59.8]} 2. c4 {[%clk 0:03:03.3]}
2... dxc4 {[%clk 0:03:01.4]} 3. Nf3 {[%clk 0:03:03.6]} 3... Nf6 {[%clk
0:03:01.5]} 4. e3 {[%clk 0:03:05]} 4... b5 {[%clk 0:03:02.1]} 5. a4 {[%clk
0:03:02.3]} 5... b4 {[%clk 0:03:02.4]} 6. Bxc4 {[%clk 0:03:02.1]} 6... e6 {[%clk
0:03:03.5]} 7. a5 {[%clk 0:02:57.1]} 7... a6 {[%clk 0:02:57.1]} 8. O-O {[%clk
0:02:56]} 8... Bb7 {[%clk 0:02:56.7]} 9. Nbd2 {[%clk 0:02:50.9]} 9... Be7 {[%clk
0:02:56.4]} 10. Qe2 {[%clk 0:02:38.5]} 10... O-O {[%clk 0:02:56.2]} 11. Nb3
{[%clk 0:02:36.7]} 11... Nbd7 {[%clk 0:02:54.7]} 12. Rd1 {[%clk 0:02:33.5]}
12... Qb8 {[%clk 0:02:52.3]} 13. Ne5 {[%clk 0:02:30.7]} 13... c5 {[%clk
0:02:46.9]} 14. Nd3 {[%clk 0:02:05.3]} 14... cxd4 {[%clk 0:02:45.3]} 15. exd4
{[%clk 0:02:07.2]} 15... Bc6 {[%clk 0:02:32.1]} 16. Bxe6 {[%clk 0:01:58.8]}
16... Qb7 {[%clk 0:02:27.1]} 17. Bxd7 {[%clk 0:01:57.3]} 17... Qxd7 {[%clk
0:01:56.4]} 18. Ne5 {[%clk 0:01:18.7]} 18... Qe6 {[%clk 0:01:52.8]} 19. Bg5
{[%clk 0:00:46.3]} 19... Bb7 {[%clk 0:01:01.6]} 20. Nd2 {[%clk 0:00:36.1]} 20...
Nd5 {[%clk 0:00:58.4]} 21. Bxe7 {[%clk 0:00:29]} 21... Qxe7 {[%clk 0:00:45.5]}
22. Qg4 {[%clk 0:00:19.9]} 22... f5 {[%clk 0:00:43.6]} 23. Qg3 {[%clk
0:00:17.2]} 23... f4 {[%clk 0:00:40.7]} 24. Qg4 {[%clk 0:00:18.2]} 24... Nf6
{[%clk 0:00:28.8]} 25. Qh4 {[%clk 0:00:13.6]} 25... Qe6 {[%clk 0:00:26.8]} 26.
Rac1 {[%clk 0:00:11.4]} 26... Rad8 {[%clk 0:00:26.8]} 27. Ndf3 {[%clk
0:00:11.7]} 27... h6 {[%clk 0:00:23.7]} 28. Qxf4 {[%clk 0:00:11.2]} 28... Nd5
{[%clk 0:00:20.9]} 29. Qg4 {[%clk 0:00:11.9]} 29... Qxg4 {[%clk 0:00:19.3]} 30.
Nxg4 {[%clk 0:00:13.8]} 30... Nf4 {[%clk 0:00:20.8]} 31. Rc7 {[%clk 0:00:12.7]}
31... Ne2+ {[%clk 0:00:12.6]} 32. Kf1 {[%clk 0:00:11.6]} 32... Bxf3 {[%clk
0:00:14.4]} 33. gxf3 {[%clk 0:00:13.1]} 33... Nxd4 {[%clk 0:00:15.3]} 34. Kg2
{[%clk 0:00:11]} 34... Nb5 {[%clk 0:00:13]} 35. Rxd8 {[%clk 0:00:08.7]} 35...
Rxd8 {[%clk 0:00:14.9]} 36. Rc6 {[%clk 0:00:10.4]} 36... Rd2 {[%clk 0:00:15]}
37. Rxa6 {[%clk 0:00:09.2]} 37... Rxb2 {[%clk 0:00:15.8]} 38. Rb6 {[%clk
0:00:09.7]} 38... Nc3 {[%clk 0:00:16.1]} 39. a6 {[%clk 0:00:11.2]} 39... Ra2
{[%clk 0:00:15.4]} 40. Rxb4 {[%clk 0:00:10.4]} 40... Rxa6 {[%clk 0:00:15.9]} 41.
Rb8+ {[%clk 0:00:11.6]} 41... Kh7 {[%clk 0:00:16.2]} 42. Rb7 {[%clk 0:00:13.5]}
42... Nd5 {[%clk 0:00:16.1]} 43. Ne3 {[%clk 0:00:13.8]} 43... Rg6+ {[%clk
0:00:13.8]} 44. Kf1 {[%clk 0:00:14.5]} 44... Nf4 {[%clk 0:00:15.3]} 45. Ra7
{[%clk 0:00:14.4]} 45... Rb6 {[%clk 0:00:15.7]} 46. Ke1 {[%clk 0:00:10.2]} 46...
Rb1+ {[%clk 0:00:13]} 47. Kd2 {[%clk 0:00:11.5]} 47... Rb2+ {[%clk 0:00:14]} 48.
Kc3 {[%clk 0:00:09.1]} 48... Rxf2 {[%clk 0:00:13.5]} 49. Nf5 {[%clk 0:00:09.4]}
49... Rxf3+ {[%clk 0:00:13.8]} 50. Kd2 {[%clk 0:00:10.3]} 50... Ne6 {[%clk
0:00:14.1]} 51. Ng3 {[%clk 0:00:04.2]} 51... Rf2+ {[%clk 0:00:14.3]} 52. Ke3
{[%clk 0:00:05.8]} 52... Rxh2 {[%clk 0:00:16]} 53. Re7 {[%clk 0:00:07.2]} 53...
Rh3 {[%clk 0:00:15]} 54. Kf3 {[%clk 0:00:07.3]} 54... Ng5+ {[%clk 0:00:15.1]}
55. Kg4 {[%clk 0:00:08.3]} 55... Rh2 {[%clk 0:00:12.8]} 56. Nf5 {[%clk
0:00:08.7]} 56... Rg2+ {[%clk 0:00:12.6]} 57. Kf4 {[%clk 0:00:07.5]} 57... Nh3+
{[%clk 0:00:12.9]} 58. Kf3 {[%clk 0:00:08.8]} 58... Rg5 {[%clk 0:00:12.3]} 59.
Ne3 {[%clk 0:00:09.9]} 59... h5 {[%clk 0:00:11.5]} 60. Rd7 {[%clk 0:00:10.3]}
60... Kh6 {[%clk 0:00:11.9]} 61. Ng2 {[%clk 0:00:11]} 61... Ng1+ {[%clk
0:00:10.6]} 62. Kf2 {[%clk 0:00:11.9]} 62... Nh3+ {[%clk 0:00:12.1]} 63. Kf3
{[%clk 0:00:13.4]} 63... g6 {[%clk 0:00:10]} 64. Rd6 {[%clk 0:00:14.3]} 64...
Rf5+ {[%clk 0:00:10.2]} 65. Kg3 {[%clk 0:00:15.2]} 65... Ng5 {[%clk 0:00:10.8]}
66. Ra6 {[%clk 0:00:16.5]} 66... Ne4+ {[%clk 0:00:11.6]} 67. Kh3 {[%clk
0:00:17.3]} 67... Rf3+ {[%clk 0:00:11.4]} 68. Kh2 {[%clk 0:00:18.8]} 68... Rf6
{[%clk 0:00:12.8]} 69. Ra4 {[%clk 0:00:18.8]} 69... Nf2 {[%clk 0:00:11.7]} 70.
Ra8 {[%clk 0:00:19.2]} 70... Ng4+ {[%clk 0:00:13.6]} 71. Kg3 {[%clk 0:00:20.6]}
71... Kg5 {[%clk 0:00:13.8]} 72. Ra5+ {[%clk 0:00:21.4]} 72... Rf5 {[%clk
0:00:13.8]} 73. Ra6 {[%clk 0:00:22.3]} 73... Rb5 {[%clk 0:00:14.1]} 74. Ra3
{[%clk 0:00:18.4]} 74... Re5 {[%clk 0:00:12.1]} 75. Rb3 {[%clk 0:00:18]} 75...
Nf6 {[%clk 0:00:11.3]} 76. Nh4 {[%clk 0:00:07.5]} 76... Ne4+ {[%clk 0:00:11]}
77. Kh3 {[%clk 0:00:08.7]} 77... Rd5 {[%clk 0:00:10.7]} 78. Nf3+ {[%clk
0:00:09]} 78... Kf4 {[%clk 0:00:10.7]} 79. Nh4 {[%clk 0:00:09]} 79... g5 {[%clk
0:00:07.3]} 80. Rf3+ {[%clk 0:00:09.9]} 80... Ke5 {[%clk 0:00:05.3]} 81. Ng6+
{[%clk 0:00:07.8]} 81... Kd6 {[%clk 0:00:02.8]} 82. Rf8 {[%clk 0:00:07.4]} 82...
Rd3+ {[%clk 0:00:02.1]} 83. Kg2 {[%clk 0:00:08.5]} 83... Ke6 {[%clk 0:00:02.5]}
84. Rh8 {[%clk 0:00:06.2]} 84... h4 {[%clk 0:00:02.9]} 85. Nxh4 {[%clk
0:00:05.1]} 85... gxh4 {[%clk 0:00:03.2]} 86. Rxh4 {[%clk 0:00:07]} 86... Rg3+
{[%clk 0:00:03.8]} 87. Kh2 {[%clk 0:00:07.9]} 87... Re3 {[%clk 0:00:04.8]} 88.
Kg2 {[%clk 0:00:09]} 88... Ke5 {[%clk 0:00:05.7]} 89. Rh5+ {[%clk 0:00:10]}
89... Kd4 {[%clk 0:00:06.6]} 90. Ra5 {[%clk 0:00:11.2]} 90... Rc3 {[%clk
0:00:06.8]} 91. Ra4+ {[%clk 0:00:12.3]} 91... Ke3 {[%clk 0:00:07.9]} 92. Rb4
{[%clk 0:00:10.5]} 92... Rc2+ {[%clk 0:00:07.9]} 93. Kh3 {[%clk 0:00:12]} 93...
Kf3 {[%clk 0:00:08.1]} 94. Rb3+ {[%clk 0:00:09.1]} 94... Kf4 {[%clk 0:00:08.9]}
95. Rb4 {[%clk 0:00:10.7]} 95... Rd2 {[%clk 0:00:08.5]} 96. Ra4 {[%clk
0:00:11.8]} 96... Rd3+ {[%clk 0:00:08.5]} 97. Kg2 {[%clk 0:00:09.8]} 97... Rg3+
{[%clk 0:00:08.7]} 98. Kh2 {[%clk 0:00:10.7]} 98... Rg7 {[%clk 0:00:09]} 99. Rb4
{[%clk 0:00:07.4]} 99... Kf3 {[%clk 0:00:09.2]} 100. Rb3+ {[%clk 0:00:07.8]}
100... Kf2 {[%clk 0:00:09.7]} 101. Rb2+ {[%clk 0:00:08.8]} 101... Ke3 {[%clk
0:00:10.7]} 102. Rb3+ {[%clk 0:00:09.3]} 102... Kf4 {[%clk 0:00:10]} 103. Rb4
{[%clk 0:00:10.6]} 103... Kf3 {[%clk 0:00:10.7]} 104. Rb3+ {[%clk 0:00:11.7]}
104... Kf2 {[%clk 0:00:11.8]} 105. Rb2+ {[%clk 0:00:12.8]} 105... Ke1 {[%clk
0:00:12.6]} 106. Rb1+ {[%clk 0:00:12.9]} 106... Kd2 {[%clk 0:00:13.6]} 107. Rb2+
{[%clk 0:00:12]} 107... Kc3 {[%clk 0:00:13.3]} 108. Ra2 {[%clk 0:00:12]} 108...
Kd3 {[%clk 0:00:14.1]} 109. Ra3+ {[%clk 0:00:13]} 109... Nc3 {[%clk 0:00:15.2]}
110. Kh3 {[%clk 0:00:12.6]} 110... Kd4 {[%clk 0:00:16.2]} 111. Kh4 {[%clk
0:00:11.4]} 111... Ne4 {[%clk 0:00:17.1]} 112. Ra4+ {[%clk 0:00:12.2]} 112...
Ke5 {[%clk 0:00:18]} 113. Kh3 {[%clk 0:00:12.5]} 113... Kf4 {[%clk 0:00:19]}
114. Kh2 {[%clk 0:00:13.2]} 114... Kf3 {[%clk 0:00:17]} 115. Ra3+ {[%clk
0:00:14.2]} 115... Kg4 {[%clk 0:00:17.2]} 116. Ra4 {[%clk 0:00:15.5]} 116... Kf4
{[%clk 0:00:16.8]} 117. Rb4 {[%clk 0:00:16.3]} 117... Ke3 {[%clk 0:00:16.5]}
118. Rb3+ {[%clk 0:00:17.3]} 118... Ke2 {[%clk 0:00:17.1]} 119. Rb2+ {[%clk
0:00:18.5]} 119... Nd2 {[%clk 0:00:18]} 120. Ra2 {[%clk 0:00:14.5]} 120... Ke3
{[%clk 0:00:18.8]} 121. Ra3+ {[%clk 0:00:07.7]} 121... Kf2 {[%clk 0:00:19.3]}
122. Kh3 {[%clk 0:00:08.2]} 122... Nf3 {[%clk 0:00:17.5]} 123. Ra2+ {[%clk
0:00:07.7]} 123... Kf1 {[%clk 0:00:17.7]} 124. Ra1+ {[%clk 0:00:07.4]} 124...
Ne1 {[%clk 0:00:18.7]} 125. Kh4 {[%clk 0:00:08.1]} 125... Kf2 {[%clk 0:00:18.3]}
126. Kh5 {[%clk 0:00:08.2]} 126... Rg3 {[%clk 0:00:18.1]} 127. Ra2+ {[%clk
0:00:08.9]} 127... Kg1 {[%clk 0:00:18.2]} 128. Kh4 {[%clk 0:00:08.3]} 128... Re3
{[%clk 0:00:18.9]} 129. Kg5 {[%clk 0:00:08.9]} 129... Ng2 {[%clk 0:00:20.6]}
130. Kf5 {[%clk 0:00:09.2]} 130... Rf3+ {[%clk 0:00:21]} 131. Ke4 {[%clk
0:00:08.8]} 131... Rf1 {[%clk 0:00:22.9]} 132. Kd4 {[%clk 0:00:09.4]} 132... Re1
{[%clk 0:00:23.6]} 133. Kc3 {[%clk 0:00:10.3]} 1/2-1/2